fUSD/lending_fUSD_20250610
["ID","MTS","AMOUNT","RATE_DAILY","PERIOD"]
[365284113,1749577838314,-194.56242665,0.00016437,2]
[365284114,1749577838324,-194.59165518,0.00016437,2]
[365284115,1749577838334,-490.0,0.00016438,2]
[365284116,1749577838345,-490.0,0.00016438,2]
[365284117,1749577838354,-1069.33314044,0.00016602,2]
[365284118,1749577838559,-6280.74806442,0.00016602,2]
[365284119,1749577838569,-490.0,0.00016602,2]
[365284120,1749577838579,-490.0,0.00016602,2]
[365284121,1749577838588,-285.3424388,0.00016602,2]
[365284122,1749577838598,-490.0,0.00016602,2]
[365284123,1749577838607,-939.02,0.00016602,2]
[365284124,1749577838616,-490.0,0.00016602,2]
[365284125,1749577838626,-319.93331919,0.00016602,2]
[365284137,1749577838832,-681.291469,0.00016602,2]
[365284139,1749577838842,-681.291469,0.00016602,2]
[365284141,1749577838852,-490.0,0.00016602,2]
[365284143,1749577838866,-1095.65,0.00016602,2]
[365284145,1749577838876,-490.0,0.00016602,2]
[365284147,1749577838885,-490.0,0.00016602,2]
[365284149,1749577838895,-490.0,0.00016602,2]
[365284151,1749577838906,-490.0,0.00016602,2]
[365284153,1749577838916,-490.0,0.00016602,2]
[365284155,1749577838925,-490.0,0.00016602,2]
[365284157,1749577838936,-490.0,0.00016602,2]
[365284159,1749577838946,-490.0,0.00016602,2]
[365284161,1749577838957,-530.7,0.00016602,2]
[365284163,1749577838967,-601.8227086,0.00016602,2]
[365284165,1749577838976,-490.0,0.00016602,2]
[365284167,1749577838986,-490.0,0.00016602,2]
[365284169,1749577838996,-555.747873,0.00016602,2]
[365284171,1749577839005,-555.747873,0.00016602,2]
[365284173,1749577839015,-490.0,0.00016602,2]
[365284175,1749577839027,-427.3,0.00016602,2]
[365284177,1749577839036,-490.0,0.00016602,2]
[365284179,1749577839046,-490.0,0.00016602,2]
[365284181,1749577839057,-490.0,0.00016602,2]
[365284183,1749577839066,-490.0,0.00016602,2]
[365284185,1749577839075,-499.999999,0.00016602,2]
[365284187,1749577839084,-490.0,0.00016602,2]
[365284189,1749577839094,-480.0,0.00016602,2]
[365284191,1749577839103,-196.65,0.00016602,2]
[365284193,1749577839113,-490.0,0.00016602,2]
[365284195,1749577839122,-509.58,0.00016602,2]
[365284197,1749577839131,-490.0,0.00016602,2]
[365284199,1749577839141,-490.0,0.00016602,2]
[365284201,1749577839150,-490.0,0.00016602,2]
[365284203,1749577839160,-490.0,0.00016602,2]
[365284205,1749577839170,-490.0,0.00016602,2]
[365284207,1749577839179,-490.0,0.00016602,2]
[365284209,1749577839188,-660.51,0.00016602,2]
[365284211,1749577839197,-490.0,0.00016602,2]
[365284213,1749577839210,-618.42,0.00016602,2]
[365284215,1749577839219,-490.0,0.00016602,2]
[365284217,1749577839228,-490.0,0.00016602,2]
[365284219,1749577839239,-467.65,0.00016602,2]
[365284221,1749577839248,-586.14,0.00016602,2]
[365284223,1749577839257,-490.0,0.00016602,2]
[365284225,1749577839266,-490.0,0.00016602,2]
[365284226,1749577839275,-490.0,0.00016602,2]
[365284227,1749577839284,-490.0,0.00016602,2]
[365284228,1749577839293,-490.0,0.00016602,2]
[365284229,1749577839302,-490.0,0.00016602,2]
[365284230,1749577839312,-490.0,0.00016602,2]
[365284231,1749577839321,-498.01,0.00016602,2]
[365284232,1749577839330,-490.0,0.00016602,2]
[365284233,1749577839340,-150.0,0.00016617,7]
[365284234,1749577839350,-1000.0,0.00016618,2]
[365284235,1749577839360,-645.64,0.00016755,2]
[365284236,1749577839370,-2083.33,0.00016767,2]
[365284237,1749577839379,-490.0,0.00016767,2]
[365284238,1749577839389,-490.0,0.00016767,2]
[365284239,1749577839398,-490.0,0.00016767,2]
[365284240,1749577839407,-170.15,0.00016767,2]
[365284241,1749577839417,-490.0,0.00016767,2]
[365284242,1749577839427,-711.42,0.00016767,2]
[365284243,1749577839437,-1168.38,0.00016767,2]
[365284244,1749577839446,-490.0,0.00016767,2]
[365284245,1749577839457,-480.0,0.00016767,2]
[365284246,1749577839466,-679.66,0.00016767,2]
[365284247,1749577839476,-480.0,0.00016767,2]
[365284248,1749577839485,-170.788367,0.00016767,2]
[365284249,1749577839495,-490.0,0.00016767,2]
[365284250,1749577839503,-170.788367,0.00016767,2]
[365284251,1749577839513,-490.0,0.00016767,2]
[365284252,1749577839522,-216.89,0.00016767,2]
[365284253,1749577839531,-490.0,0.00016767,2]
[365284254,1749577839540,-11171.37,0.00016767,2]
[365284255,1749577839550,-203.76,0.00016767,2]
[365284256,1749577839560,-480.0,0.00016767,2]
[365284257,1749577839569,-939.02,0.00016767,2]
[365284258,1749577839579,-490.0,0.00016767,2]
[365284259,1749577839588,-681.291469,0.00016767,2]
[365284260,1749577839598,-681.291469,0.00016767,2]
[365284261,1749577839608,-490.0,0.00016767,2]
[365284262,1749577839618,-1095.65,0.00016767,2]
[365284263,1749577839627,-490.0,0.00016767,2]
[365284264,1749577839637,-490.0,0.00016767,2]
[365284265,1749577839646,-260.02,0.00016767,2]
[365284266,1749577839656,-490.0,0.00016767,2]
[365284267,1749577839666,-380.43460272,0.00016767,2]
[365284268,1749577839676,-490.0,0.00016767,2]
[365284269,1749577839685,-490.0,0.00016767,2]
[365284270,1749577839694,-555.747873,0.00016767,2]
[365284271,1749577839704,-555.747873,0.00016767,2]
[365284272,1749577839714,-490.0,0.00016767,2]
[365284273,1749577839723,-490.0,0.00016767,2]
[365284274,1749577839733,-490.0,0.00016767,2]
[365284275,1749577839742,-608.61823488,0.00016767,2]
[365284276,1749577839752,-490.0,0.00016767,2]
[365284277,1749577839763,-490.0,0.00016767,2]
[365284278,1749577839773,-490.0,0.00016767,2]
[365284279,1749577839783,-490.0,0.00016767,2]
[365284280,1749577839792,-490.0,0.00016767,2]
[365284281,1749577839801,-490.0,0.00016767,2]
[365284282,1749577839810,-660.51,0.00016767,2]
[365284283,1749577839820,-618.42,0.00016767,2]
[365284284,1749577839830,-244.78,0.00016767,2]
[365284285,1749577839838,-487.21,0.00016767,2]
[365284286,1749577839847,-586.14,0.00016767,2]
[365284287,1749577839857,-490.0,0.00016767,2]
[365284288,1749577839869,-490.0,0.00016767,2]
[365284289,1749577839878,-490.0,0.00016767,2]
[365284290,1749577839887,-490.0,0.00016767,2]
[365284291,1749577839898,-490.0,0.00016767,2]
[365284292,1749577839907,-490.0,0.00016767,2]
[365284293,1749577839916,-490.0,0.00016767,2]
[365284294,1749577839925,-490.0,0.00016767,2]
[365284295,1749577839934,-200.0,0.00016804,3]
[365284296,1749577839943,-250.0,0.00016823,2]
[365284297,1749577839955,-151.0,0.00016855,2]
[365284298,1749577839965,-1000.0,0.00016855,2]
[365284299,1749577839975,-1957.856,0.00016855,2]
[365284300,1749577839984,-207.4,0.00016855,2]
[365284301,1749577839994,-1541.15487927,0.00016866,2]
[365284302,1749577840005,-689.15447901,0.0001691,2]
[365284303,1749577840015,-296.47,0.00016921,2]
[365284304,1749577840024,-500.0,0.0001693,2]
[365284305,1749577840034,-2083.33,0.00016931,2]
[365284306,1749577840043,-490.0,0.00016931,2]
[365284308,1749577840053,-490.0,0.00016931,2]
[365284309,1749577840063,-490.0,0.00016931,2]
[365284310,1749577840073,-490.0,0.00016931,2]
[365284311,1749577840082,-711.42,0.00016931,2]
[365284312,1749577840092,-1168.38,0.00016931,2]
[365284313,1749577840101,-475.42352392,0.00016931,2]
[365284314,1749577840111,-679.66,0.00016931,2]
[365284315,1749577840121,-490.0,0.00016931,2]
[365284316,1749577840130,-490.0,0.00016931,2]
[365284317,1749577840139,-480.0,0.00016931,2]
[365284318,1749577840149,-11171.37,0.00016931,2]
[365284319,1749577840159,-939.02,0.00016931,2]
[365284320,1749577840168,-490.0,0.00016931,2]
[365284321,1749577840177,-594.95,0.00016931,2]
[365284322,1749577840186,-1095.65,0.00016931,2]
[365284323,1749577840196,-490.0,0.00016931,2]
[365284324,1749577840206,-490.0,0.00016931,2]
[365284325,1749577840215,-490.0,0.00016931,2]
[365284326,1749577840226,-490.0,0.00016931,2]
[365284327,1749577840236,-490.0,0.00016931,2]
[365284328,1749577840245,-490.0,0.00016931,2]
[365284329,1749577840255,-490.0,0.00016931,2]
[365284330,1749577840264,-480.0,0.00016931,2]
[365284331,1749577840274,-490.0,0.00016931,2]
[365284332,1749577840283,-490.0,0.00016931,2]
[365284333,1749577840292,-480.0,0.00016931,2]
[365284334,1749577840301,-490.0,0.00016931,2]
[365284335,1749577840310,-660.51,0.00016931,2]
[365284336,1749577840320,-618.42,0.00016931,2]
[365284337,1749577840329,-586.14,0.00016931,2]
[365284338,1749577840339,-490.0,0.00016931,2]
[365284339,1749577840348,-490.0,0.00016931,2]
[365284340,1749577840357,-223.96,0.00016931,2]
[365284341,1749577840367,-490.0,0.00016931,2]
[365284342,1749577840376,-490.0,0.00016931,2]
[365284343,1749577840386,-490.0,0.00016931,2]
[365284344,1749577840395,-490.0,0.00016931,2]
[365284345,1749577840405,-2083.33,0.00017095,2]
[365284346,1749577840415,-490.0,0.00017095,2]
[365284347,1749577840425,-490.0,0.00017095,2]
[365284348,1749577840435,-490.0,0.00017095,2]
[365284349,1749577840445,-490.0,0.00017095,2]
[365284350,1749577840456,-711.42,0.00017095,2]
[365284351,1749577840465,-1168.38,0.00017095,2]
[365284352,1749577840474,-679.66,0.00017095,2]
[365284353,1749577840483,-490.0,0.00017095,2]
[365284354,1749577840494,-490.0,0.00017095,2]
[365284355,1749577840503,-2423.45330719,0.00017095,2]
[365284356,1749577840522,-514.06266125,0.00017095,2]
[365284357,1749577840576,60.4,0.00016409,2]
[365284358,1749577840636,255.52,0.00013699,2]
[365284359,1749577840769,-605.6,0.00016409,2]
[365284360,1749577840778,-490.0,0.00016438,2]
[365284361,1749577840788,-355.74,0.00016602,2]
[365284362,1749577840798,-8233.85403156,0.00017095,2]
[365284363,1749577840808,-939.02,0.00017095,2]
[365284364,1749577840817,-490.0,0.00017095,2]
[365284365,1749577840828,-1095.65,0.00017095,2]
[365284366,1749577840838,-490.0,0.00017095,2]
[365284367,1749577840848,-490.0,0.00017095,2]
[365284368,1749577840863,-490.0,0.00017095,2]
[365284369,1749577840883,-290.5,0.00017095,2]
[365284370,1749577840894,-490.0,0.00017095,2]
[365284371,1749577840904,-616.78,0.00017095,2]
[365284373,1749577840913,-490.0,0.00017095,2]
[365284375,1749577840923,-490.0,0.00017095,2]
[365284377,1749577840932,-660.51,0.00017095,2]
[365284379,1749577840942,-618.42,0.00017095,2]
[365284381,1749577840951,-586.14,0.00017095,2]
[365284383,1749577840962,-490.0,0.00017095,2]
[365284384,1749577840971,-490.0,0.00017095,2]
[365284385,1749577840981,-490.0,0.00017095,2]
[365284386,1749577840991,-490.0,0.00017095,2]
[365284387,1749577841000,-490.0,0.00017095,2]
[365284388,1749577841010,-833.29909032,0.00017155,2]
[365284389,1749577841019,-166.57135391,0.0001716,2]
[365284390,1749577841029,-500.0,0.00017165,2]
[365284391,1749577841038,-500.0,0.00017165,2]
[365284392,1749577841048,-1541.15487927,0.0001723,2]
[365284393,1749577841057,-622.73068332,0.00017234,2]
[365284394,1749577841067,-2083.33,0.0001726,2]
[365284395,1749577841077,-490.0,0.0001726,2]
[365284396,1749577841087,-490.0,0.0001726,2]
[365284397,1749577841097,-490.0,0.0001726,2]
[365284398,1749577841106,-189.04,0.0001726,2]
[365284400,1749577841116,-711.42,0.0001726,2]
[365284402,1749577841126,-1168.38,0.0001726,2]
[365284404,1749577841136,-679.66,0.0001726,2]
[365284406,1749577841145,-490.0,0.0001726,2]
[365284407,1749577841154,-490.0,0.0001726,2]
[365284408,1749577841163,-11171.37,0.0001726,2]
[365284409,1749577841172,-939.02,0.0001726,2]
[365284411,1749577841181,-490.0,0.0001726,2]
[365284413,1749577841191,-1095.65,0.0001726,2]
[365284415,1749577841200,-490.0,0.0001726,2]
[365284417,1749577841209,-490.0,0.0001726,2]
[365284419,1749577841220,-490.0,0.0001726,2]
[365284421,1749577841230,-490.0,0.0001726,2]
[365284423,1749577841241,-490.0,0.0001726,2]
[365284424,1749577841251,-490.0,0.0001726,2]
[365284425,1749577841261,-660.51,0.0001726,2]
[365284426,1749577841270,-618.42,0.0001726,2]
[365284427,1749577841279,-586.14,0.0001726,2]
[365284428,1749577841289,-490.0,0.0001726,2]
[365284429,1749577841299,-490.0,0.0001726,2]
[365284430,1749577841308,-490.0,0.0001726,2]
[365284431,1749577841318,-490.0,0.0001726,2]
[365284432,1749577841327,-490.0,0.0001726,2]
[365284433,1749577841337,-200.0,0.00017279,3]
[365284434,1749577841346,-1000.0,0.00017294,2]
[365284435,1749577841356,-404.53705258,0.000173,2]
[365284436,1749577841365,-404.53705236,0.000173,2]
[365284437,1749577841375,-404.53705236,0.000173,2]
[365284438,1749577841385,-404.53705236,0.000173,2]
[365284439,1749577841394,-156.42,0.00017301,2]
[365284440,1749577841404,-404.53705236,0.00017314,2]
[365284441,1749577841413,-88888.0,0.00017324,2]
[365284442,1749577841423,-1960.0,0.00017334,2]
[365284443,1749577841432,-400.0,0.00017336,2]
[365284444,1749577841442,-500.0,0.00017345,2]
[365284445,1749577841452,-1000.0,0.00017376,2]
[365284446,1749577841462,-404.53705236,0.00017417,2]
[365284447,1749577841472,-1007.0,0.00017419,2]
[365284448,1749577841481,-640.53,0.00017423,2]
[365284449,1749577841491,-2083.33,0.00017424,2]
[365284450,1749577841501,-490.0,0.00017424,2]
[365284451,1749577841511,-490.0,0.00017424,2]
[365284452,1749577841521,-490.0,0.00017424,2]
[365284453,1749577841530,-711.42,0.00017424,2]
[365284454,1749577841540,-1168.38,0.00017424,2]
[365284455,1749577841550,-679.66,0.00017424,2]
[365284456,1749577841559,-490.0,0.00017424,2]
[365284457,1749577841569,-490.0,0.00017424,2]
[365284458,1749577841579,-11171.37,0.00017424,2]
[365284459,1749577841591,-939.02,0.00017424,2]
[365284460,1749577841604,-490.0,0.00017424,2]
[365284461,1749577841614,-1095.65,0.00017424,2]
[365284462,1749577841625,-490.0,0.00017424,2]
[365284463,1749577841635,-490.0,0.00017424,2]
[365284464,1749577841645,-490.0,0.00017424,2]
[365284465,1749577841654,-490.0,0.00017424,2]
[365284466,1749577841664,-490.0,0.00017424,2]
[365284467,1749577841674,-490.0,0.00017424,2]
[365284468,1749577841683,-660.51,0.00017424,2]
[365284469,1749577841693,-618.42,0.00017424,2]
[365284470,1749577841702,-586.14,0.00017424,2]
[365284471,1749577841712,-490.0,0.00017424,2]
[365284472,1749577841721,-490.0,0.00017424,2]
[365284473,1749577841730,-490.0,0.00017424,2]
[365284474,1749577841741,-490.0,0.00017424,2]
[365284475,1749577841751,-490.0,0.00017424,2]
[365284476,1749577841760,-161.2337942,0.00017489,2]
[365284477,1749577841770,-630.0,0.00017504,2]
[365284478,1749577841779,-622.73068327,0.00017517,2]
[365284479,1749577841788,-404.53705236,0.00017521,2]
[365284480,1749577841798,-454.85,0.00017534,2]
[365284481,1749577841807,-454.85,0.00017534,2]
[365284482,1749577841817,-452.43,0.00017534,2]
[365284483,1749577841828,-300.0,0.00017534,2]
[365284484,1749577841838,-150.0,0.00017534,2]
[365284485,1749577841850,-2083.33,0.00017589,2]
[365284486,1749577841862,-490.0,0.00017589,2]
[365284487,1749577841872,-490.0,0.00017589,2]
[365284488,1749577841882,-490.0,0.00017589,2]
[365284489,1749577841891,-711.42,0.00017589,2]
[365284490,1749577841900,-1168.38,0.00017589,2]
[365284491,1749577841910,-679.66,0.00017589,2]
[365284492,1749577841919,-490.0,0.00017589,2]
[365284493,1749577841928,-490.0,0.00017589,2]
[365284494,1749577841939,-11171.37,0.00017589,2]
[365284495,1749577841948,-939.02,0.00017589,2]
[365284496,1749577841958,-490.0,0.00017589,2]
[365284497,1749577841968,-1095.65,0.00017589,2]
[365284498,1749577841978,-490.0,0.00017589,2]
[365284499,1749577841987,-1825.0,0.00017589,2]
[365284500,1749577841997,-490.0,0.00017589,2]
[365284501,1749577842006,-490.0,0.00017589,2]
[365284502,1749577842016,-194.70390264,0.00017589,2]
[365284503,1749577842025,-490.0,0.00017589,2]
[365284504,1749577842035,-490.0,0.00017589,2]
[365284505,1749577842044,-660.51,0.00017589,2]
[365284506,1749577842053,-618.42,0.00017589,2]
[365284507,1749577842061,-586.14,0.00017589,2]
[365284508,1749577842070,-490.0,0.00017589,2]
[365284509,1749577842079,-490.0,0.00017589,2]
[365284510,1749577842088,-490.0,0.00017589,2]
[365284511,1749577842097,-490.0,0.00017589,2]
[365284512,1749577842106,-170.15,0.00017589,2]
[365284513,1749577842115,-1541.15487927,0.00017594,2]
[365284514,1749577842124,-404.53705236,0.00017624,2]
[365284515,1749577842134,-386.0,0.00017674,2]
[365284516,1749577842143,-404.53705236,0.00017728,2]
[365284517,1749577842152,-500.0,0.00017752,2]
[365284518,1749577842161,-2083.33,0.00017753,2]
[365284519,1749577842171,-490.0,0.00017753,2]
[365284520,1749577842180,-490.0,0.00017753,2]
[365284521,1749577842189,-490.0,0.00017753,2]
[365284522,1749577842198,-711.42,0.00017753,2]
[365284523,1749577842208,-1168.38,0.00017753,2]
[365284524,1749577842217,-679.66,0.00017753,2]
[365284525,1749577842226,-490.0,0.00017753,2]
[365284526,1749577842235,-490.0,0.00017753,2]
[365284527,1749577842244,-11171.37,0.00017753,2]
[365284528,1749577842254,-939.02,0.00017753,2]
[365284529,1749577842263,-490.0,0.00017753,2]
[365284530,1749577842273,-1095.65,0.00017753,2]
[365284531,1749577842282,-490.0,0.00017753,2]
[365284532,1749577842291,-490.0,0.00017753,2]
[365284533,1749577842300,-358.06,0.00017753,2]
[365284534,1749577842310,-490.0,0.00017753,2]
[365284535,1749577842319,-490.0,0.00017753,2]
[365284536,1749577842329,-660.51,0.00017753,2]
[365284537,1749577842339,-618.42,0.00017753,2]
[365284538,1749577842348,-586.14,0.00017753,2]
[365284539,1749577842357,-490.0,0.00017753,2]
[365284540,1749577842366,-490.0,0.00017753,2]
[365284541,1749577842376,-185.7603487,0.00017753,2]
[365284542,1749577842385,-490.0,0.00017753,2]
[365284543,1749577842394,-200.0,0.00017754,4]
[365284544,1749577842404,-432.0,0.00017759,2]
[365284545,1749577842414,-622.73068327,0.000178,2]
[365284546,1749577842422,-500.0,0.00017808,2]
[365284547,1749577842431,-190.47944605,0.00017808,2]
[365284548,1749577842440,-404.53705236,0.00017831,2]
[365284549,1749577842450,-733.0,0.00017844,2]
[365284550,1749577842461,-161.83725783,0.000179,2]
[365284551,1749577842471,-161.83725777,0.000179,2]
[365284552,1749577842480,-161.83725777,0.000179,2]
[365284553,1749577842489,-161.83725777,0.00017906,2]
[365284554,1749577842498,-397.0,0.00017915,2]
[365284555,1749577842507,-2083.33,0.00017917,2]
[365284556,1749577842517,-490.0,0.00017917,2]
[365284557,1749577842527,-490.0,0.00017917,2]
[365284558,1749577842536,-490.0,0.00017917,2]
[365284559,1749577842545,-711.42,0.00017917,2]
[365284560,1749577842555,-1168.38,0.00017917,2]
[365284561,1749577842564,-679.66,0.00017917,2]
[365284562,1749577842573,-336.57,0.00017917,2]
[365284563,1749577842583,-490.0,0.00017917,2]
[365284564,1749577842593,-11171.37,0.00017917,2]
[365284565,1749577842602,-939.02,0.00017917,2]
[365284566,1749577842612,-490.0,0.00017917,2]
[365284567,1749577842622,-1095.65,0.00017917,2]
[365284568,1749577842632,-490.0,0.00017917,2]
[365284569,1749577842641,-490.0,0.00017917,2]
[365284570,1749577842651,-490.0,0.00017917,2]
[365284571,1749577842660,-463.12,0.00017917,2]
[365284572,1749577842670,-660.51,0.00017917,2]
[365284573,1749577842680,-618.42,0.00017917,2]
[365284574,1749577842689,-586.14,0.00017917,2]
[365284575,1749577842698,-490.0,0.00017917,2]
[365284576,1749577842707,-490.0,0.00017917,2]
[365284577,1749577842717,-490.0,0.00017917,2]
[365284578,1749577842727,-404.53705236,0.00017934,2]
[365284579,1749577842736,-1541.15487927,0.00017958,2]
[365284580,1749577842745,-161.23379415,0.00017971,2]
[365284581,1749577842754,-1655.0,0.00018003,2]
[365284582,1749577842764,-404.53705236,0.00018038,2]
[365284583,1749577842773,-1680.0,0.00018052,2]
[365284584,1749577842783,-2083.33,0.00018082,2]
[365284585,1749577842792,-216.96665258,0.00018082,2]
[365284586,1749577842976,-490.0,0.00018082,2]
[365284587,1749577842987,-490.0,0.00018082,2]
[365284588,1749577842997,-711.42,0.00018082,2]
[365284589,1749577843007,-1168.38,0.00018082,2]
[365284590,1749577843018,-679.66,0.00018082,2]
[365284591,1749577843028,-490.0,0.00018082,2]
[365284592,1749577843039,-11171.37,0.00018082,2]
[365284593,1749577843048,-939.02,0.00018082,2]
[365284594,1749577843058,-490.0,0.00018082,2]
[365284595,1749577843068,-1095.65,0.00018082,2]
[365284596,1749577843078,-490.0,0.00018082,2]
[365284598,1749577843088,-490.0,0.00018082,2]
[365284600,1749577843098,-490.0,0.00018082,2]
[365284601,1749577843109,-660.51,0.00018082,2]
[365284602,1749577843119,-618.42,0.00018082,2]
[365284603,1749577843128,-586.14,0.00018082,2]
[365284604,1749577843144,-490.0,0.00018082,2]
[365284605,1749577843163,-490.0,0.00018082,2]
[365284606,1749577843175,-490.0,0.00018082,2]
[365284607,1749577843185,-242.0,0.00018091,2]
[365284608,1749577843195,-4891.0,0.0001811,2]
[365284609,1749577843206,-1000.0,0.0001812,2]
[365284610,1749577843218,-404.53705236,0.00018141,2]
[365284612,1749577843228,-1793.0,0.00018179,2]
[365284614,1749577843238,-156.587,0.00018224,2]
[365284616,1749577843248,-215.0738,0.00018224,2]
[365284617,1749577843258,-200.0,0.00018228,5]
[365284620,1749577843268,-404.53705236,0.00018245,2]
[365284623,1749577843278,-2083.33,0.00018246,2]
[365284625,1749577843289,-183.00311869,0.00018246,2]
[365284627,1749577843298,-490.0,0.00018246,2]
[365284631,1749577843308,-711.42,0.00018246,2]
[365284634,1749577843319,-1168.38,0.00018246,2]
[365284636,1749577843329,-679.66,0.00018246,2]
[365284639,1749577843339,-511.82,0.00018246,2]
[365284640,1749577843350,-11171.37,0.00018246,2]
[365284641,1749577843360,-939.02,0.00018246,2]
[365284642,1749577843370,-490.0,0.00018246,2]
[365284643,1749577843381,-1095.65,0.00018246,2]
[365284645,1749577843392,-428.9912731,0.00018246,2]
[365284647,1749577843402,-490.0,0.00018246,2]
[365284650,1749577843412,-490.0,0.00018246,2]
[365284652,1749577843422,-660.51,0.00018246,2]
[365284655,1749577843433,-618.42,0.00018246,2]
[365284657,1749577843443,-586.14,0.00018246,2]
[365284660,1749577843454,-490.0,0.00018246,2]
[365284663,1749577843464,-490.0,0.00018246,2]
[365284666,1749577843474,-490.0,0.00018246,2]
[365284668,1749577843483,-512.0,0.00018267,2]
[365284671,1749577843493,-325.92,0.00018268,2]
[365284673,1749577843503,-1541.15487927,0.00018323,2]
[365284675,1749577843513,-404.53705236,0.00018348,2]
[365284677,1749577843523,-344.71,0.00018356,2]
[365284679,1749577843533,-454.85,0.00018356,2]
[365284680,1749577843543,-454.85,0.00018356,2]
[365284681,1749577843552,-454.85,0.00018356,2]
[365284682,1749577843562,-454.85,0.00018356,2]
[365284683,1749577843572,-454.85,0.00018356,2]
[365284684,1749577843581,-454.85,0.00018356,2]
[365284685,1749577843591,-454.85,0.00018356,2]
[365284686,1749577843601,-454.85,0.00018356,2]
[365284687,1749577843611,-454.85,0.00018356,2]
[365284688,1749577843621,-454.85,0.00018356,2]
[365284689,1749577843630,-454.85,0.00018356,2]
[365284690,1749577843640,-454.85,0.00018356,2]
[365284691,1749577843650,-454.85,0.00018356,2]
[365284692,1749577843661,-454.85,0.00018356,2]
[365284693,1749577843670,-454.85,0.00018356,2]
[365284694,1749577843681,-928.39,0.00018356,2]
[365284695,1749577843692,-2083.33,0.0001841,2]
[365284696,1749577843701,-490.0,0.0001841,2]
[365284697,1749577843712,-711.42,0.0001841,2]
[365284698,1749577843722,-1168.38,0.0001841,2]
[365284699,1749577843732,-679.66,0.0001841,2]
[365284700,1749577843741,-11171.37,0.0001841,2]
[365284701,1749577843752,-939.02,0.0001841,2]
[365284702,1749577843762,-490.0,0.0001841,2]
[365284704,1749577843771,-1095.65,0.0001841,2]
[365284706,1749577843781,-161.7,0.0001841,2]
[365284708,1749577843791,-490.0,0.0001841,2]
[365284710,1749577843801,-660.51,0.0001841,2]
[365284712,1749577843811,-618.42,0.0001841,2]
[365284713,1749577843821,-586.14,0.0001841,2]
[365284714,1749577843831,-490.0,0.0001841,2]
[365284715,1749577843840,-490.0,0.0001841,2]
[365284716,1749577843850,-490.0,0.0001841,2]
[365284717,1749577843862,-945.0,0.00018444,2]
[365284718,1749577843871,-3330.0,0.00018444,2]
[365284719,1749577843880,-802.0,0.00018444,2]
[365284720,1749577843890,-637.0,0.00018444,2]
[365284721,1749577843899,-558.0,0.00018444,2]
[365284722,1749577843910,-1275.0,0.00018444,2]
[365284723,1749577843920,-590.0,0.00018444,2]
[365284724,1749577843931,-927.0,0.00018444,2]
[365284725,1749577843941,-2001.0,0.00018444,2]
[365284726,1749577843950,-1256.0,0.00018444,2]
[365284727,1749577843960,-155.0,0.00018444,2]
[365284728,1749577843970,-7064.0,0.00018444,2]
[365284729,1749577843980,-883.0,0.00018444,2]
[365284730,1749577843990,-853.0,0.00018444,2]